bitfinex-derivatives/quotes_ETHF0:USTF0_20251103
["timestamp","ask_amount","ask_price","bid_price","bid_amount"]
[1762203130450,2.50798,3589.4,3588.2,0.14844372]
[1762203130648,0.50174,3588.3,3588.2,0.14844372]
[1762203130851,1.25391,3589.6,3588.2,0.14844372]
[1762203131049,0.50173,3588.4,3588.3,0.2326]
[1762203131358,0.50174,3588.3,3588.2,0.14844372]
[1762203132259,0.50173,3588.5,3588.2,0.14844372]
[1762203132755,1.25419,3588.8,3588.2,0.14844372]
[1762203132953,1.25399,3589.4,3588.5,0.50171]
[1762203133158,1.25401,3589.3,3588.2,0.14844372]
[1762203133452,0.50174,3588.3,3588.2,0.14844372]
[1762203135153,1.25412,3589.0,3588.2,0.14844372]
[1762203135154,1.25412,3589.0,3588.2,0.65019372]
[1762203135351,0.50174,3588.3,3588.2,0.14844372]
[1762203135746,1.25419,3588.8,3588.2,0.14844372]
[1762203135951,0.50169,3588.7,3588.6,0.1398]
[1762203137050,5.07795,3589.5,3588.2,0.14844372]
[1762203137256,0.50174,3588.3,3588.2,0.00284372]
[1762203138956,0.50173,3588.4,3588.3,0.2338]
[1762203139353,1.25389,3589.7,3588.6,0.1398]
[1762203139551,0.002965,3590.1,3589.2,0.1398]
[1762203139760,0.50152,3589.9,3589.8,0.1398]
[1762203140359,1.256715,3590.1,3589.2,0.1398]
[1762203140657,0.50157,3589.6,3589.2,0.64142]
[1762203140857,0.50157,3589.6,3589.3,0.5016]
[1762203141259,1.2538,3589.9,3589.2,0.64142]
[1762203141463,0.5016,3589.3,3589.2,0.1398]
[1762203142259,1.2538,3589.9,3589.2,0.1398]
[1762203142564,0.50159,3589.4,3589.2,0.1398]
[1762203142862,0.5016,3589.3,3589.2,0.1398]
[1762203143558,0.002965,3590.1,3589.2,0.64142]
[1762203143766,1.25377,3590.0,3589.3,0.5016]
[1762203144769,0.002965,3590.1,3589.8,0.1398]
[1762203144966,0.002965,3590.1,3590.0,0.2338]
[1762203145161,0.504455,3590.1,3590.0,0.2338]
[1762203145459,0.50152,3589.9,3589.8,0.1398]
[1762203145664,0.50157,3589.5,3589.4,0.22478277]
[1762203145860,0.5016,3589.3,3589.2,0.1398]
[1762203146955,0.50159,3589.4,3589.2,0.1398]
[1762203147153,0.50159,3589.5,3589.2,0.1398]
[1762203147360,0.5016,3589.3,3589.2,0.1398]
[1762203148660,0.50169,3588.7,3588.6,0.1398]
[1762203149171,0.50174,3588.3,3588.2,0.00284372]
[1762203149660,10.199,3589.4,3588.6,0.1411]
[1762203149855,0.50169,3588.7,3588.6,0.1411]
[1762203150058,1.25388,3589.7,3588.6,0.1411]
[1762203150363,0.50159,3589.4,3589.2,0.1411]
[1762203150661,0.5016,3589.3,3589.2,0.1411]
[1762203150855,0.50158,3589.5,3589.2,0.1411]
[1762203151056,0.5016,3589.3,3589.2,0.1411]
[1762203151256,0.50152,3589.9,3589.8,0.1411]
[1762203151459,0.002965,3590.1,3589.8,0.1411]
[1762203151955,0.50152,3589.9,3589.8,0.1411]
[1762203152662,0.50151,3590.0,3589.8,0.1411]
[1762203152862,0.002965,3590.1,3589.8,0.1411]
[1762203152863,0.50152,3589.9,3589.8,0.1411]
[1762203153063,1.25377,3590.0,3589.2,0.1411]
[1762203153365,0.002965,3590.1,3589.2,0.1411]
[1762203153366,0.50156,3589.6,3589.3,0.5016]
[1762203153666,0.50152,3589.9,3589.8,0.1411]
[1762203154368,0.002965,3590.1,3589.8,0.1411]
[1762203154665,0.50152,3589.9,3589.8,0.1411]
[1762203154866,0.5015,3590.0,3589.8,0.1411]
[1762203155068,0.50152,3589.9,3589.8,0.1411]
[1762203155465,0.002965,3590.1,3589.8,0.1411]
[1762203155770,0.97207899,3591.4,3590.4,0.1411]
[1762203155771,0.50137,3591.0,3590.4,0.1411]
[1762203156069,0.50135,3591.1,3591.0,0.1411]
[1762203156266,0.50134,3591.2,3591.0,0.1411]
[1762203156767,0.50404121,3591.2,3591.0,0.14430973]
[1762203156963,1.2535,3590.8,3589.8,0.1411]
[1762203157163,0.50148,3590.2,3589.8,0.1411]
[1762203157560,1.25352,3590.7,3589.8,0.1411]
[1762203157561,0.50152,3589.9,3589.8,0.1411]
[1762203158068,0.50152,3589.9,3589.8,0.14374071]
[1762203159173,0.50152,3589.9,3589.8,0.00264071]
[1762203161370,0.50152,3589.9,3588.6,0.1411]
[1762203161371,0.50169,3588.7,3588.6,0.1411]
[1762203161562,0.50177,3588.1,3587.5,1.98178904]
[1762203161762,0.50177,3588.1,3587.1,1.98178904]
[1762203161968,0.97207899,3589.8,3587.6,0.50184]
[1762203162170,0.50174,3588.3,3587.6,0.50184]
[1762203162367,0.00296095,3588.3,3588.0,0.14356127]
[1762203162671,0.50176,3588.2,3588.0,0.14356127]
[1762203162964,0.00296095,3588.3,3588.0,0.14356127]
[1762203163159,0.00296095,3588.3,3588.2,0.2336]
[1762203163359,0.00296095,3588.3,3588.0,0.14356127]
[1762203163562,0.50176,3588.2,3588.0,0.14356127]
[1762203164461,0.00296095,3588.3,3588.0,0.14356127]
[1762203164462,0.00296095,3588.3,3588.2,0.2336]
[1762203164864,0.50176,3588.2,3588.0,0.14356127]
[1762203166261,0.00296095,3588.3,3588.0,0.00246127]
[1762203166475,0.50177,3588.1,3588.0,0.00246127]
[1762203167366,0.00296095,3588.3,3586.2,4.91195904]
[1762203167367,1.2545,3587.9,3586.7,0.50197]
[1762203167563,1.2545,3587.9,3586.8,0.64305]
[1762203167963,0.00296095,3588.3,3587.4,0.1421]
[1762203168162,0.50185,3587.5,3587.4,0.1421]
[1762203168367,0.50184,3587.7,3587.4,0.1456887]
[1762203168674,0.50185,3587.5,3587.4,0.1456887]
[1762203168971,0.5018,3587.9,3587.4,0.6475487]
[1762203169272,0.50183,3587.7,3587.4,0.1456887]
[1762203169467,0.00296095,3588.3,3587.4,0.1456887]
[1762203169672,1.25441,3588.2,3587.4,0.1456887]
[1762203169967,0.50184,3587.6,3587.4,0.1456887]
[1762203170167,0.00296095,3588.3,3587.4,0.1456887]
[1762203170360,0.50183,3587.7,3587.4,0.1456887]
[1762203170668,0.00296095,3588.3,3587.4,0.6475587]
[1762203171068,0.50183,3587.7,3587.4,0.1456887]
[1762203171469,1.25443,3588.1,3587.4,0.1456887]
[1762203171669,0.50185,3587.5,3587.4,0.1456887]
[1762203171973,0.50184,3587.6,3587.4,0.1456887]
[1762203172269,0.50185,3587.5,3587.4,0.1456887]
[1762203172473,0.50185,3587.5,3587.4,0.0035887]
[1762203172864,0.50185,3587.5,3587.4,0.1456887]
[1762203174368,0.50181,3587.9,3587.4,0.1456887]
[1762203174562,0.50185,3587.5,3587.4,0.1456887]
[1762203176270,3.815,3588.2,3587.4,0.1456887]
[1762203176472,0.50185,3587.5,3587.4,0.0035887]
[1762203178174,3.815,3588.2,3587.4,0.1456887]
[1762203178370,0.50185,3587.5,3587.4,0.1456887]
[1762203178774,0.50185,3587.5,3587.4,0.3742887]
[1762203179072,1.25443,3588.1,3587.4,0.3742887]
[1762203179268,1.25443,3588.1,3587.4,0.1456887]
[1762203179470,0.50177,3588.1,3588.0,0.1421]
[1762203180272,0.50185,3587.5,3587.4,0.0035887]
[1762203180667,0.00296095,3588.3,3587.4,0.1456887]
[1762203180668,1.25735095,3588.3,3587.4,0.1456887]
[1762203180866,0.50185,3587.5,3587.4,0.1456887]
[1762203181278,0.50185,3587.5,3587.4,0.0035887]
[1762203182380,0.50185,3587.5,3587.4,0.1456887]
[1762203183466,0.50185,3587.5,3587.4,0.0035887]
[1762203184273,10.199,3587.8,3587.4,0.0035887]
[1762203184480,10.199,3587.8,3586.8,0.1411]
[1762203184481,0.50194,3586.9,3586.8,0.1411]
[1762203184773,10.199,3587.8,3585.6,2.12388904]
[1762203184774,0.50202,3586.3,3585.6,0.64422]
[1762203184980,0.50202,3586.3,3585.9,0.50208]
[1762203185176,10.199,3587.0,3585.6,0.1421]
[1762203185478,1.2545,3588.0,3586.2,0.14400374]
[1762203185780,0.50191,3587.1,3586.8,0.1421]
[1762203185983,1.25455,3587.8,3587.0,0.50192]
[1762203186177,0.50188,3587.4,3587.0,0.50191]
[1762203186480,1.25451,3587.9,3586.9,0.50194]
[1762203186481,1.2545,3587.9,3586.9,0.50194]
[1762203186780,0.5019,3587.2,3586.9,0.50193]
[1762203186981,10.199,3588.1,3587.4,0.1421]
[1762203187172,0.00296095,3588.3,3587.4,0.64397]
[1762203187374,0.50183,3587.7,3587.4,0.64397]
[1762203187575,0.50183,3587.7,3587.4,0.1421]
[1762203187774,10.199,3588.2,3587.5,0.50185]
[1762203187973,0.00296095,3588.3,3587.6,0.50184]
[1762203188273,0.50182,3587.8,3587.7,0.2286]
[1762203188788,0.50176,3588.2,3587.8,0.2286]
[1762203188991,0.00296095,3588.3,3588.0,0.1421]
[1762203189198,0.50177,3588.1,3588.0,0.1421]
[1762203190193,0.00296095,3588.3,3588.0,0.1421]
[1762203190493,0.50177,3588.1,3588.0,0.1421]
[1762203191698,0.50185,3587.5,3587.4,0.1421]
[1762203192886,1.25447,3588.0,3587.4,0.1421]
[1762203193088,0.50182,3587.8,3587.4,0.1421]
[1762203193290,0.00296095,3588.3,3588.0,0.1421]
[1762203193595,0.00296095,3588.3,3588.2,0.50176]
[1762203193795,0.00296095,3588.3,3588.2,0.2286]
[1762203193995,0.00296095,3588.3,3588.2,0.73036]
[1762203194802,0.00296095,3588.3,3588.2,0.2286]
[1762203195089,0.00296095,3588.3,3588.2,0.73036]
[1762203195692,0.50470095,3588.3,3588.2,0.2286]
[1762203195891,0.50177,3588.1,3588.0,0.3661]
[1762203196088,0.00296095,3588.3,3588.0,0.3661]
[1762203196285,0.00296095,3588.3,3588.0,0.86788]
[1762203196484,0.00296095,3588.3,3588.2,0.72576]
[1762203196791,0.50470095,3588.3,3588.2,0.224]
[1762203197692,0.50177,3588.1,3588.0,0.1421]
[1762203198093,0.50177,3588.1,3587.4,0.1421]
[1762203198094,0.50185,3587.5,3587.4,0.1421]
[1762203198292,1.25445,3588.1,3586.8,0.1421]
[1762203198293,0.50194,3586.9,3586.8,0.1421]
[1762203198794,0.50191,3587.1,3586.8,0.1421]
[1762203199095,0.50193,3587.0,3586.8,0.1421]
[1762203199492,0.50194,3586.9,3586.8,0.3661]
[1762203200193,1.25466,3587.5,3586.8,0.3661]
[1762203201097,11.44941,3588.2,3586.8,0.86804]
[1762203201396,1.25447,3588.0,3586.8,0.86804]
[1762203201591,1.25456,3587.8,3586.8,0.3661]
[1762203201798,0.50194,3586.9,3586.8,0.3661]
[1762203201987,0.50191,3587.1,3586.8,0.86805]
[1762203202394,0.50191,3587.1,3586.8,0.3661]
[1762203202792,0.5019,3587.2,3586.8,0.86805]
[1762203202993,0.50194,3586.9,3586.8,0.3661]
[1762203203188,0.50192,3587.1,3586.8,0.3661]
[1762203203394,10.195,3588.2,3586.8,0.3661]
[1762203203594,0.50194,3586.9,3586.8,0.1421]
[1762203203896,10.195,3588.2,3586.9,0.50194]
[1762203204200,10.195,3588.2,3586.8,0.1421]
[1762203204201,12.54564,3587.8,3586.5,0.1376]
[1762203204396,0.50198,3586.6,3586.5,0.1376]
[1762203206093,0.50202,3586.3,3586.2,0.14400374]
[1762203207404,0.50198,3586.6,3586.5,0.1376]
[1762203209505,0.50202,3586.3,3586.2,0.14400374]
[1762203209702,0.50202,3586.3,3586.2,0.00290374]
[1762203209902,0.50219,3585.1,3585.0,0.1376]
[1762203210292,9.90324,3585.8,3585.0,0.1376]
[1762203210505,0.50219,3585.1,3585.0,0.1376]
[1762203210799,0.50501527,3585.1,3585.0,0.13983278]
[1762203212108,0.50501527,3585.1,3585.0,0.00223278]
[1762203213209,0.50232,3584.2,3584.0,0.1079614]
[1762203213797,0.5024,3583.6,3583.5,0.1357]
[1762203214001,0.5024,3583.6,3582.6,0.1357]
[1762203214002,10.192,3584.3,3582.6,0.1357]
[1762203214201,0.50251,3582.9,3582.6,0.13860321]
[1762203214402,1.25548,3585.2,3582.6,0.13860321]
[1762203214601,1.25597,3583.8,3582.6,0.13860321]
[1762203214797,0.50248,3583.1,3582.6,0.13860321]
[1762203214995,10.192,3583.7,3582.6,0.00290321]
[1762203215197,0.50252,3582.8,3582.6,0.00290321]
[1762203215496,0.649,3582.7,3580.4,1.98178904]
[1762203215695,12.56693,3581.7,3580.2,0.1357]
[1762203215906,0.5027,3581.5,3580.2,0.1357]
[1762203216098,0.50278,3580.9,3580.2,0.1357]
[1762203216295,1.25659,3582.0,3580.2,0.1357]
[1762203216296,8.082,3580.8,3580.2,0.1357]
[1762203216499,0.00329709,3580.8,3580.2,0.13778637]
[1762203217103,0.48,3580.7,3580.2,0.13778637]
[1762203217299,0.50286,3580.4,3579.7,0.02793569]
[1762203217507,1.25738,3579.8,3576.3,5.92813469]
[1762203217715,23.697,3579.7,3577.0,0.1357]
[1762203218005,12.57330709,3580.8,3579.1,0.1357]
[1762203218006,1.25703,3580.7,3579.1,0.1357]
[1762203218309,0.503,3579.4,3578.4,0.1357]
[1762203218508,0.477,3579.3,3578.4,0.13885699]
[1762203218809,0.50302,3579.2,3578.4,0.13885699]
[1762203218999,0.477,3579.3,3578.4,0.13885699]
[1762203219201,0.50299,3579.4,3578.4,0.13885699]
[1762203219402,13.53803899,3582.0,3579.2,0.1357]
[1762203219604,13.394,3581.1,3579.2,0.1357]
[1762203219798,0.50282,3580.7,3579.2,0.1357]
[1762203219998,0.50275,3581.1,3579.5,0.50297]
[1762203220203,12.56442,3582.4,3580.0,0.1357]
[1762203220204,13.397,3581.9,3580.0,0.1357]
[1762203220412,0.50288,3580.2,3580.0,0.1357]
[1762203220603,0.50288,3580.2,3578.4,0.13885699]
[1762203220604,1.25727,3580.0,3578.4,0.13885699]
[1762203220803,0.50311,3578.6,3578.4,0.00315699]
[1762203221005,17.3274,3578.5,3576.8,0.1357]
[1762203221207,10.341,3578.5,3577.6,0.1357]
[1762203221407,0.50322,3577.8,3577.6,0.1357]
[1762203221713,0.50334,3576.9,3576.8,0.1357]
[1762203222010,10.37646845,3576.9,3576.8,0.00340453]
[1762203222202,0.00346845,3576.9,3576.8,0.00340453]
[1762203222402,12.57577,3579.2,3576.8,0.13910453]
[1762203222608,13.401,3578.8,3576.8,0.13910453]
[1762203222809,12.57848,3578.4,3576.8,0.13910453]
[1762203223005,12.57667,3578.9,3576.8,0.13910453]
[1762203223309,12.57737,3578.7,3576.8,0.13910453]
[1762203223514,0.50334,3576.9,3576.8,0.13910453]
[1762203223714,10.395,3577.3,3576.8,0.13910453]
[1762203223906,0.50333,3577.0,3576.8,0.13910453]
[1762203224104,0.50314,3578.4,3577.0,0.50333]
[1762203224310,0.00304336,3578.7,3577.6,0.1357]
[1762203224512,0.50316,3578.3,3577.6,0.1357]
[1762203224813,0.00304336,3578.7,3577.6,0.1357]
[1762203225006,0.37004336,3578.7,3577.6,0.1357]
[1762203225205,13.83654,3578.4,3576.8,0.13910453]
[1762203225409,0.00304336,3578.7,3576.8,0.00340453]
[1762203225609,0.00304336,3578.7,3576.8,0.25460453]
[1762203225812,0.50321,3577.9,3576.8,0.75795453]
[1762203226113,0.50329,3577.4,3576.8,0.00340453]
[1762203226308,12.58064336,3578.7,3576.8,0.25460453]
[1762203226509,1.25783,3578.5,3576.8,0.25460453]
[1762203226707,12.58064336,3578.7,3576.8,0.25460453]
[1762203226708,0.00304336,3578.7,3576.8,0.25460453]
[1762203227114,0.50321,3577.9,3576.8,0.75795453]
[1762203227421,0.00304336,3578.7,3576.8,0.25460453]
[1762203227616,0.50324,3577.7,3576.8,0.25460453]
[1762203227909,1.25782,3578.5,3576.8,0.25460453]
[1762203227910,0.50329,3577.3,3576.8,0.25460453]
[1762203228115,0.50326,3577.5,3576.8,0.25460453]
[1762203228311,8.452,3577.6,3576.8,0.25460453]
[1762203228516,0.50329,3577.3,3576.8,0.25460453]
[1762203228718,0.50327,3577.5,3576.8,0.25460453]
[1762203229012,8.452,3577.6,3576.9,0.50334]
[1762203229314,8.452,3577.6,3576.8,0.25460453]
[1762203229315,8.452,3577.6,3576.8,0.00340453]
[1762203229506,0.50329,3577.3,3576.8,0.00340453]
[1762203229714,0.50327,3577.5,3576.8,0.25460453]
[1762203230110,0.50334,3577.0,3576.8,0.00340453]
[1762203230311,0.50334,3577.0,3574.6,1.25917]
[1762203230312,6.9888,3577.8,3573.8,1.25946]
[1762203230512,6.9888,3577.8,3573.7,12.59476]
[1762203230513,0.04867082,3577.1,3575.2,0.2512]
[1762203230817,0.474,3577.4,3575.6,0.50351]
[1762203231009,0.50344,3576.3,3575.3,0.50356]
[1762203231209,1.25816,3577.5,3575.3,0.00205878]
[1762203231210,0.773,3576.4,3575.3,0.00205878]
[1762203231410,1.25827,3577.2,3575.3,0.50562878]
[1762203231615,1.25835,3577.0,3575.3,0.00205878]
[1762203231814,0.0486747,3577.2,3575.8,0.50349]
[1762203232116,0.50334,3577.0,3576.2,0.50343]
[1762203232310,1.028,3577.2,3576.1,0.50345]
[1762203232711,0.50333,3577.1,3576.3,0.50342]
[1762203232913,0.50327,3577.5,3576.7,0.50336]
[1762203233217,6.14925,3577.6,3576.9,0.50333]
[1762203233412,0.50327,3577.5,3576.9,0.50333]
[1762203233712,0.00304336,3578.7,3576.8,0.2512]
[1762203233914,0.50313,3578.5,3576.9,1.25834]
[1762203234112,1.59513336,3578.7,3577.8,0.50321]
[1762203234416,1.59513336,3578.7,3577.6,0.2512]
[1762203234417,1.09204336,3578.7,3577.6,0.2512]
[1762203234809,0.00304336,3578.7,3577.6,0.2512]
[1762203235006,0.00304336,3578.7,3578.4,0.75432]
[1762203235215,0.002,3579.5,3578.4,0.00307556]
[1762203235413,0.50312,3578.6,3578.4,0.00307556]
[1762203236112,0.50516701,3578.6,3578.4,0.00307556]
[1762203236312,0.00204701,3578.6,3578.4,0.00307556]
[1762203236514,0.00204701,3578.6,3578.4,0.25427556]
[1762203236713,0.00204701,3578.6,3578.5,0.50312]
[1762203237420,0.00204701,3578.6,3578.4,0.25427556]
[1762203237920,0.00204701,3578.6,3578.4,0.75739556]
[1762203238215,0.00204701,3578.6,3578.4,0.25427556]
[1762203238616,0.00204701,3578.6,3578.4,0.75739556]
[1762203238809,0.50293,3579.9,3578.4,0.25427556]
[1762203239015,0.50279,3580.9,3579.4,0.50299]
[1762203239316,13.417,3581.1,3579.4,0.50299]
[1762203239317,0.5029,3580.1,3579.4,0.50299]
[1762203239510,0.50296,3579.7,3579.2,0.2512]
[1762203239713,0.00269909,3579.7,3579.2,0.2512]
[1762203239910,0.50299,3579.5,3578.4,0.25427556]
[1762203240111,0.50304,3579.1,3578.4,0.25427556]
[1762203240321,10.62269909,3579.7,3578.5,40.8]
[1762203240725,0.50311,3578.6,3578.4,0.00307556]
[1762203241017,6.9848,3579.6,3577.0,1.25831]
[1762203241220,0.50307,3578.9,3577.9,0.5032]
[1762203241424,0.50304,3579.1,3578.4,0.2512]
[1762203241613,0.503,3579.4,3578.4,0.2512]
[1762203241920,0.50301,3579.3,3578.7,0.50309]
[1762203242118,0.50302,3579.2,3578.4,0.2536294]
[1762203242313,0.50301,3579.3,3578.8,0.50307]
[1762203242514,1.26008909,3579.7,3578.4,0.2536294]
[1762203242724,0.50311,3578.6,3578.4,0.2536294]
[1762203242926,0.50311,3578.6,3578.4,0.0024294]
[1762203243224,0.50311,3578.6,3578.4,0.2536294]
[1762203243621,1.25749,3579.4,3578.4,0.2536294]
[1762203243824,0.50302,3579.2,3578.6,0.5031]
[1762203244127,0.50307,3578.9,3578.4,0.2536294]
[1762203244323,10.623,3579.4,3578.5,0.50311]
[1762203244631,0.50312,3578.5,3578.4,0.0024294]
[1762203245021,11.31661517,3578.5,3578.4,0.0024294]
[1762203245323,1.25784,3578.4,3577.0,0.50333]
[1762203245517,1.25802,3577.9,3576.8,0.2512]
[1762203245727,0.68361517,3577.8,3577.0,0.50332]
[1762203246030,1.47768217,3578.3,3577.6,0.2512]
[1762203246228,1.65944332,3578.2,3577.6,0.2512]
[1762203246426,0.50322,3577.8,3577.6,0.2512]
[1762203246625,0.68491115,3577.7,3577.6,0.75445]
[1762203246826,0.97453217,3578.7,3578.3,0.50314]
[1762203247131,0.6855492,3578.6,3578.4,0.2512]
[1762203247427,0.6855492,3578.5,3578.4,0.2512]
[1762203248128,0.97453217,3579.3,3578.4,0.2512]
[1762203248327,0.68264992,3579.2,3579.1,0.50303]
[1762203248529,0.50301,3579.3,3579.2,0.2512]
[1762203248820,0.50298,3579.5,3579.2,0.75422]
[1762203249230,0.50298,3579.5,3578.4,1.50901]
[1762203249231,1.92949552,3579.4,3578.4,0.2512]
[1762203249422,1.25742,3579.6,3578.5,40.8]
[1762203249621,0.67177378,3579.5,3579.2,0.2512]
[1762203249823,0.67177378,3579.4,3577.6,0.25455404]
[1762203250027,0.50322,3577.8,3577.6,0.25455404]
[1762203250332,0.97453217,3578.4,3577.6,0.75779404]
[1762203250631,0.50316,3578.2,3577.8,0.50321]
[1762203250934,0.97453217,3578.8,3578.1,0.50317]
[1762203251120,0.67208091,3578.7,3578.5,0.50311]
[1762203251325,0.67208091,3578.6,3578.5,0.50311]
[1762203251527,0.97453217,3579.5,3578.7,0.50309]
[1762203251729,0.50305,3579.0,3578.7,0.50309]
[1762203251931,0.97453217,3579.6,3578.7,1.25773]
[1762203252133,0.66878558,3579.5,3579.3,0.503]
[1762203252322,0.00269909,3579.7,3579.5,0.50297]
[1762203252725,0.97453217,3580.8,3580.5,0.50283]
[1762203253030,0.97453217,3581.4,3581.1,0.75395]
[1762203253227,0.50267,3581.7,3581.1,0.75395]
[1762203253423,0.50269,3581.6,3581.1,0.75395]
[1762203253626,0.50261,3582.2,3581.5,0.50269]
[1762203253827,0.00260266,3582.2,3582.0,0.2512]
[1762203254129,0.00260266,3582.2,3581.5,0.00236406]
[1762203254130,0.50268,3581.7,3581.5,0.00236406]
[1762203254326,0.50268,3581.7,3580.0,0.2512]
[1762203254327,10.648,3581.7,3580.0,0.2512]
[1762203254532,0.97453217,3581.3,3580.0,0.2512]
[1762203254826,0.23673295,3581.6,3580.1,0.50289]
[1762203254827,0.50278,3581.0,3580.1,0.50289]
[1762203255021,0.50278,3581.0,3580.0,0.2512]
[1762203255022,1.25683,3581.3,3580.0,0.2512]
[1762203255228,0.50288,3580.2,3580.0,0.25394689]
[1762203255433,0.50288,3580.2,3580.0,0.00274689]
[1762203255828,0.50289,3580.1,3580.0,0.00274689]
[1762203256228,1.2571,3580.6,3579.3,0.2512]
[1762203256533,0.50295,3579.7,3578.4,0.2512]
[1762203256733,0.50297,3579.6,3578.4,0.2512]
[1762203257028,7.136,3580.1,3578.4,0.2512]
[1762203257029,1.2573,3580.0,3578.4,0.2512]
[1762203257230,0.50308,3578.8,3578.4,0.2512]
[1762203257538,0.00197663,3580.0,3578.4,0.75668426]
[1762203257834,0.50294,3579.8,3579.0,0.50304]
[1762203258035,0.50294,3579.8,3579.3,0.2472]
[1762203258236,0.50488663,3580.0,3579.3,0.2472]
[1762203258539,0.50299,3579.5,3579.3,0.2472]
[1762203259034,0.00197663,3580.0,3579.3,0.2472]
[1762203259234,0.50299,3579.4,3579.3,0.2472]
[1762203259932,0.50306,3579.0,3578.5,40.8]
[1762203260130,0.50308,3578.8,3578.4,0.25356426]
[1762203260331,0.50306,3579.0,3578.4,0.25356426]
[1762203260528,0.97453217,3579.9,3578.4,0.75669426]
[1762203260737,1.25739,3579.7,3578.4,0.25356426]
[1762203261032,0.50309,3578.8,3578.4,0.25356426]
[1762203261231,0.5031,3578.7,3578.4,0.25356426]
[1762203261433,0.50308,3578.8,3578.4,0.25356426]
[1762203261630,0.50304,3579.1,3578.4,0.75669426]
[1762203261830,0.97453217,3579.6,3578.4,0.25356426]
[1762203262031,0.50297,3579.6,3578.4,0.25356426]
[1762203262232,0.50293,3579.9,3579.3,0.2472]
[1762203262431,0.00197663,3580.0,3579.3,0.2472]
[1762203262432,0.50295,3579.8,3579.3,0.2472]
[1762203262632,0.00197663,3580.0,3579.4,0.50299]
[1762203263227,0.00197663,3580.0,3579.7,0.50295]
[1762203264136,0.50292,3579.9,3579.5,0.50298]
[1762203264432,0.50292,3579.9,3579.3,0.2472]
[1762203264631,0.00197663,3580.0,3579.8,0.50293]
[1762203264835,0.50286,3580.4,3580.2,0.2472]
[1762203265832,0.50539833,3580.4,3580.2,0.2472]
[1762203266031,0.50296,3579.7,3579.3,0.2472]
[1762203266333,0.00253833,3580.4,3579.3,0.2472]
[1762203266334,0.50299,3579.5,3579.3,0.2472]
[1762203266532,1.25718,3580.3,3579.3,0.2472]
[1762203266725,1.90904196,3580.2,3579.3,0.2472]
[1762203266929,0.50298,3579.5,3579.3,0.2472]
[1762203267141,0.00253833,3580.4,3580.0,0.2472]
[1762203267331,0.00253833,3580.4,3580.1,0.50289]
[1762203267630,0.50539833,3580.4,3580.1,0.50289]
[1762203267825,0.50287,3580.3,3580.1,0.50289]
[1762203268130,0.50287,3580.3,3580.0,0.2472]
[1762203268331,0.50288,3580.2,3580.0,0.2472]
[1762203269925,0.00253833,3580.4,3580.0,0.2472]
[1762203270126,0.50289,3580.2,3580.0,0.2472]
[1762203270329,0.50307,3578.9,3578.4,0.25356426]
[1762203270529,0.5031,3578.6,3578.4,0.25356426]
[1762203271033,1.25752,3579.3,3578.4,0.25356426]
[1762203271236,0.5031,3578.6,3578.4,0.25356426]
[1762203271530,1.25729,3580.0,3578.4,0.25356426]
[1762203271734,0.503,3579.3,3578.4,0.25356426]
[1762203272039,1.25734,3579.8,3578.8,0.50307]
[1762203272237,0.50302,3579.2,3578.9,0.50306]
[1762203272431,0.50303,3579.1,3578.9,0.50306]
[1762203272631,0.50301,3579.3,3579.2,0.2293]
[1762203272832,0.50292,3579.9,3579.5,0.50297]
[1762203273134,0.00253833,3580.4,3579.7,0.50294]
[1762203273333,0.50291,3580.0,3579.7,0.50294]
[1762203273527,0.00253833,3580.4,3579.8,0.50293]
[1762203273735,0.00253833,3580.4,3580.0,0.2293]
[1762203273930,0.50289,3580.1,3580.0,0.2293]
[1762203274338,0.50288,3580.2,3580.0,0.2293]
[1762203274732,0.00253833,3580.4,3580.3,0.50286]
[1762203275738,0.50538833,3580.4,3580.1,0.50289]
[1762203275938,0.00253833,3580.4,3580.0,11.3682]
[1762203276137,0.00253833,3580.4,3580.0,10.8653]
[1762203276439,0.00253833,3580.4,3580.2,0.50287]
[1762203276834,0.50277,3581.0,3580.8,0.2293]
[1762203277029,1.25666,3581.8,3580.8,0.2293]
[1762203277231,1.25655,3582.1,3581.1,0.50274]
[1762203277435,0.50274,3581.2,3580.9,0.50277]
[1762203277637,0.50273,3581.3,3580.9,0.50277]
[1762203277834,0.50274,3581.2,3580.9,0.50556573]
[1762203278034,0.00289459,3581.3,3581.1,0.50275]
[1762203279039,0.00289459,3581.3,3581.2,0.50274]
[1762203279634,0.00289459,3581.3,3580.9,10.62879573]
[1762203280234,1.25616,3583.2,3582.1,0.5026]
[1762203280438,3.88646401,3583.6,3582.4,0.2293]
[1762203280439,0.50255,3582.5,3582.4,0.2293]
[1762203280842,0.50266,3581.8,3581.6,10.8363]
[1762203281039,1.25636,3582.6,3581.6,10.8363]
[1762203281342,1.25636,3582.6,3581.6,10.8333]
[1762203281343,0.50264,3581.9,3581.6,10.8333]
[1762203281844,1.25639,3582.5,3581.7,0.50266]
[1762203282039,0.50264,3581.9,3581.7,0.50266]
[1762203282233,1.25639,3582.5,3581.8,0.50265]
[1762203282442,0.50264,3581.9,3581.6,10.8333]
[1762203282640,0.50265,3581.8,3581.7,11.09367]
[1762203282839,1.25643,3582.4,3581.9,0.50262]
[1762203282840,0.50257,3582.4,3581.9,0.50262]
[1762203283142,0.50261,3582.1,3581.9,0.50262]
[1762203283341,0.50261,3582.1,3582.0,0.3964]
[1762203283544,0.50255,3582.5,3582.4,0.2293]
[1762203284741,0.50255,3582.5,3581.6,0.2293]
[1762203284742,1.25646,3582.3,3581.7,1.363]
[1762203284939,0.50267,3581.7,3581.6,0.2293]
[1762203285138,0.50273,3581.3,3580.9,0.00279573]
[1762203285334,0.50264,3581.9,3581.6,0.2263]
[1762203285537,0.50264,3581.9,3581.8,0.3672]
[1762203285739,0.50267,3581.7,3581.6,0.2263]
[1762203286139,0.00280637,3582.6,3581.6,0.2263]
[1762203286344,0.50276,3581.0,3580.9,0.00279573]